[Event "Titled Tuesday Blitz July 26 Late 2022"]
[White "Silva, Miguel Antonio Neto"]
[Black "Tinmaz, Kerem"]
[WhiteFideId "1911929"]
[BlackFideId "44559151"]
[WhiteElo "2223"]
[BlackElo "1443"]
[Result "1-0"]
[Round "10"]
[TimeControl "180+1"]
[Date "2022.07.27"]
[WhiteClock "0:00:54"]
[BlackClock "0:00:01"]

1. e4 {[%clk 0:03:00]}  c6 {[%clk 0:03:00]} 2. d4 {[%clk 0:02:59]}  d5 {[%clk 0:03:00]} 3. e5 {[%clk 0:02:59]}  Bf5 {[%clk 0:03:00]} 4. h4 {[%clk 0:02:58]}  h5 {[%clk 0:03:00]} 5. Bd3 {[%clk 0:02:57]}  Bxd3 {[%clk 0:03:00]} 6. Qxd3 {[%clk 0:02:57]}  e6 {[%clk 0:03:01]} 7. Nf3 {[%clk 0:02:56]}  c5 {[%clk 0:03:01]} 8. c4 {[%clk 0:02:52]}  Nc6 {[%clk 0:02:58]} 9. Nbd2 {[%clk 0:02:37]}  cxd4 {[%clk 0:02:50]} 10. O-O {[%clk 0:02:30]}  Nge7 {[%clk 0:02:33]} 11. Nb3 {[%clk 0:02:15]}  Nb4 {[%clk 0:02:19]} 12. Qd2 {[%clk 0:02:06]}  Nec6 {[%clk 0:02:07]} 13. cxd5 {[%clk 0:02:00]}  Qxd5 {[%clk 0:02:06]} 14. Nbxd4 {[%clk 0:01:45]}  Nxd4 {[%clk 0:01:49]} 15. Qxd4 {[%clk 0:01:41]}  Qxd4 {[%clk 0:01:36]} 16. Nxd4 {[%clk 0:01:41]}  Bc5 {[%clk 0:01:24]} 17. Nb3 {[%clk 0:01:34]}  Be7 {[%clk 0:01:05]} 18. Bd2 {[%clk 0:01:31]}  Nd3 {[%clk 0:01:04]} 19. Bc3 {[%clk 0:01:31]}  Bxh4 {[%clk 0:00:47]} 20. Rad1 {[%clk 0:01:25]}  Nf4 {[%clk 0:00:44]} 21. Rfe1 {[%clk 0:01:03]}  Nd5 {[%clk 0:00:40]} 22. Bd4 {[%clk 0:00:59]}  Be7 {[%clk 0:00:32]} 23. a3 {[%clk 0:00:57]}  O-O {[%clk 0:00:31]} 24. Na5 {[%clk 0:00:57]}  Rab8 {[%clk 0:00:12]} 25. Rc1 {[%clk 0:00:56]}  b6 {[%clk 0:00:04]} 26. Nc6 {[%clk 0:00:55]}  Rb7 {[%clk 0:00:05]} 27. Rc2 {[%clk 0:00:53]}  Rc7 {[%clk 0:00:04]} 28. Rec1 {[%clk 0:00:53]}  Rfc8 {[%clk 0:00:02]} 29. Nxe7+ {[%clk 0:00:54]}  Nxe7 {[%clk 0:00:01]} 30. Rxc7 {[%clk 0:00:54]} 1-0


[Site "https://www.chess.com"]

[Event "Titled Tuesday Blitz July 26 Late 2022"]
[White "Sivakumar, Shaashwath"]
[Black "Pfreundt, Jakob"]
[WhiteFideId "30912156"]
[BlackFideId "12918156"]
[WhiteElo "1823"]
[BlackElo "2345"]
[Result "0-1"]
[Round "10"]
[TimeControl "180+1"]
[Date "2022.07.26"]
[WhiteClock "0:00:05"]
[BlackClock "0:01:04"]

1. d4 {[%clk 0:02:42]}  d5 {[%clk 0:02:58]} 2. c4 {[%clk 0:02:42]}  e6 {[%clk 0:02:58]} 3. Nc3 {[%clk 0:02:42]}  c5 {[%clk 0:02:59]} 4. cxd5 {[%clk 0:02:41]}  exd5 {[%clk 0:03:00]} 5. Nf3 {[%clk 0:02:40]}  Nc6 {[%clk 0:03:00]} 6. g3 {[%clk 0:02:15]}  Nf6 {[%clk 0:02:59]} 7. Bg2 {[%clk 0:02:15]}  c4 {[%clk 0:03:00]} 8. O-O {[%clk 0:02:12]}  Be7 {[%clk 0:03:00]} 9. Ne5 {[%clk 0:02:12]}  O-O {[%clk 0:02:59]} 10. Bg5 {[%clk 0:02:11]}  Be6 {[%clk 0:02:59]} 11. b3 {[%clk 0:02:03]}  h6 {[%clk 0:02:57]} 12. Bxf6 {[%clk 0:01:57]}  Bxf6 {[%clk 0:02:58]} 13. Nxc6 {[%clk 0:01:39]}  bxc6 {[%clk 0:02:59]} 14. bxc4 {[%clk 0:01:39]}  dxc4 {[%clk 0:02:57]} 15. e3 {[%clk 0:01:35]}  c5 {[%clk 0:02:56]} 16. Ne2 {[%clk 0:01:11]}  cxd4 {[%clk 0:02:28]} 17. Nxd4 {[%clk 0:00:57]}  Bd5 {[%clk 0:02:13]} 18. Bxd5 {[%clk 0:00:31]}  Qxd5 {[%clk 0:02:14]} 19. Qc2 {[%clk 0:00:23]}  Rfc8 {[%clk 0:01:36]} 20. Rfd1 {[%clk 0:00:20]}  Qa5 {[%clk 0:01:31]} 21. Nf5 {[%clk 0:00:17]}  Bxa1 {[%clk 0:01:17]} 22. Rxa1 {[%clk 0:00:16]}  Qe5 {[%clk 0:01:14]} 23. Rd1 {[%clk 0:00:16]}  Rd8 {[%clk 0:01:11]} 24. Rd4 {[%clk 0:00:08]}  Rxd4 {[%clk 0:01:04]} 25. exd4 {[%clk 0:00:09]}  Qe1+ {[%clk 0:01:04]} 26. Kg2 {[%clk 0:00:09]}  Re8 {[%clk 0:01:04]} 27. Qxc4 {[%clk 0:00:05]}  Qe4+ {[%clk 0:01:04]} 0-1


[Site "https://www.chess.com"]

[Event "Titled Tuesday Blitz July 26 Late 2022"]
[White "Tanenbaum, Zachary"]
[Black "Zhigalko, Sergei"]
[WhiteFideId "2060850"]
[BlackFideId "13502956"]
[WhiteElo "2175"]
[BlackElo "2662"]
[Result "0-1"]
[Round "10"]
[TimeControl "180+1"]
[Date "2022.07.26"]
[WhiteClock "0:01:04"]
[BlackClock "0:01:57"]

1. e4 {[%clk 0:03:00]}  c5 {[%clk 0:02:58]} 2. Nf3 {[%clk 0:03:01]}  Nc6 {[%clk 0:02:58]} 3. Nc3 {[%clk 0:03:00]}  Nf6 {[%clk 0:02:58]} 4. Bb5 {[%clk 0:03:01]}  Qc7 {[%clk 0:02:58]} 5. O-O {[%clk 0:03:01]}  Nd4 {[%clk 0:02:59]} 6. Re1 {[%clk 0:03:01]}  a6 {[%clk 0:02:59]} 7. Bf1 {[%clk 0:03:02]}  Ng4 {[%clk 0:02:57]} 8. g3 {[%clk 0:03:03]}  Nxf3+ {[%clk 0:02:57]} 9. Qxf3 {[%clk 0:03:04]}  Ne5 {[%clk 0:02:58]} 10. Qd1 {[%clk 0:03:03]}  e6 {[%clk 0:02:58]} 11. d3 {[%clk 0:03:01]}  Be7 {[%clk 0:02:58]} 12. f4 {[%clk 0:02:59]}  Nc6 {[%clk 0:02:58]} 13. Bg2 {[%clk 0:02:58]}  O-O {[%clk 0:02:58]} 14. Be3 {[%clk 0:02:58]}  b5 {[%clk 0:02:57]} 15. Qe2 {[%clk 0:02:48]}  Bb7 {[%clk 0:02:49]} 16. Nd1 {[%clk 0:02:46]}  Rad8 {[%clk 0:02:38]} 17. c3 {[%clk 0:02:39]}  d5 {[%clk 0:02:36]} 18. Nf2 {[%clk 0:02:32]}  d4 {[%clk 0:02:36]} 19. Bd2 {[%clk 0:02:31]}  dxc3 {[%clk 0:02:33]} 20. bxc3 {[%clk 0:02:32]}  b4 {[%clk 0:02:33]} 21. Rab1 {[%clk 0:02:23]}  a5 {[%clk 0:02:30]} 22. g4 {[%clk 0:02:16]}  Ba6 {[%clk 0:02:21]} 23. Qf3 {[%clk 0:02:10]}  Bh4 {[%clk 0:02:16]} 24. Bf1 {[%clk 0:02:05]}  bxc3 {[%clk 0:02:14]} 25. Bxc3 {[%clk 0:02:05]}  Nd4 {[%clk 0:02:15]} 26. Bxd4 {[%clk 0:02:04]}  Rxd4 {[%clk 0:02:16]} 27. Nd1 {[%clk 0:01:30]}  Bxe1 {[%clk 0:02:14]} 28. g5 {[%clk 0:01:17]}  Bd2 {[%clk 0:02:10]} 29. e5 {[%clk 0:01:10]}  Bxf4 {[%clk 0:02:07]} 30. Nf2 {[%clk 0:01:05]}  Qxe5 {[%clk 0:02:02]} 31. h4 {[%clk 0:01:04]}  Be3 {[%clk 0:01:57]} 0-1


[Site "https://www.chess.com"]

[Event "Titled Tuesday Blitz July 26 Late 2022"]
[White "Todorovic, Bojan"]
[Black "Jian, Alex"]
[WhiteFideId "917087"]
[BlackFideId "30901022"]
[WhiteElo "2266"]
[BlackElo "2095"]
[Result "1-0"]
[Round "10"]
[TimeControl "180+1"]
[Date "2022.07.27"]
[WhiteClock "0:00:15"]
[BlackClock "0:00:05"]

1. d4 {[%clk 0:02:59]}  d5 {[%clk 0:02:57]} 2. c4 {[%clk 0:02:58]}  c6 {[%clk 0:02:57]} 3. Nf3 {[%clk 0:02:57]}  Nf6 {[%clk 0:02:57]} 4. e3 {[%clk 0:02:56]}  Bf5 {[%clk 0:02:54]} 5. Nc3 {[%clk 0:02:56]}  e6 {[%clk 0:02:54]} 6. Nh4 {[%clk 0:02:55]}  Bg4 {[%clk 0:02:53]} 7. Qb3 {[%clk 0:02:52]}  Qc7 {[%clk 0:02:52]} 8. h3 {[%clk 0:02:48]}  Bh5 {[%clk 0:02:52]} 9. g4 {[%clk 0:02:47]}  Bg6 {[%clk 0:02:52]} 10. Nxg6 {[%clk 0:02:41]}  hxg6 {[%clk 0:02:53]} 11. Bg2 {[%clk 0:02:38]}  Nbd7 {[%clk 0:02:53]} 12. Bd2 {[%clk 0:02:37]}  Nb6 {[%clk 0:02:50]} 13. cxd5 {[%clk 0:02:35]}  exd5 {[%clk 0:02:49]} 14. Ne2 {[%clk 0:02:29]}  Bd6 {[%clk 0:02:44]} 15. Bb4 {[%clk 0:02:25]}  O-O {[%clk 0:02:19]} 16. Bxd6 {[%clk 0:02:24]}  Qxd6 {[%clk 0:02:19]} 17. O-O-O {[%clk 0:02:24]}  Nc4 {[%clk 0:02:13]} 18. e4 {[%clk 0:02:22]}  b5 {[%clk 0:01:53]} 19. e5 {[%clk 0:02:19]}  Qe7 {[%clk 0:01:52]} 20. Ng3 {[%clk 0:02:05]}  Nd7 {[%clk 0:01:42]} 21. f4 {[%clk 0:02:01]}  a5 {[%clk 0:01:41]} 22. Qd3 {[%clk 0:01:35]}  a4 {[%clk 0:01:20]} 23. h4 {[%clk 0:01:29]}  b4 {[%clk 0:00:50]} 24. h5 {[%clk 0:01:21]}  g5 {[%clk 0:00:21]} 25. Nf5 {[%clk 0:01:18]}  Qd8 {[%clk 0:00:21]} 26. Ne3 {[%clk 0:00:52]}  gxf4 {[%clk 0:00:16]} 27. Nxc4 {[%clk 0:00:50]}  dxc4 {[%clk 0:00:16]} 28. Qxc4 {[%clk 0:00:51]}  Nb6 {[%clk 0:00:16]} 29. Qxb4 {[%clk 0:00:50]}  Nd5 {[%clk 0:00:14]} 30. Bxd5 {[%clk 0:00:48]}  Qxd5 {[%clk 0:00:14]} 31. Kb1 {[%clk 0:00:45]}  Rfb8 {[%clk 0:00:13]} 32. Qc5 {[%clk 0:00:40]}  Qg2 {[%clk 0:00:09]} 33. Qc2 {[%clk 0:00:39]}  Qxg4 {[%clk 0:00:08]} 34. Rdg1 {[%clk 0:00:35]}  Qe6 {[%clk 0:00:06]} 35. Rg2 {[%clk 0:00:21]}  Rb4 {[%clk 0:00:06]} 36. Rhg1 {[%clk 0:00:20]}  Rab8 {[%clk 0:00:06]} 37. Rxg7+ {[%clk 0:00:20]}  Kf8 {[%clk 0:00:06]} 38. Rg8+ {[%clk 0:00:20]}  Ke7 {[%clk 0:00:06]} 39. Qc5+ {[%clk 0:00:20]}  Kd7 {[%clk 0:00:06]} 40. Rxb8 {[%clk 0:00:19]}  Rxb8 {[%clk 0:00:07]} 41. d5 {[%clk 0:00:17]}  Qf5+ {[%clk 0:00:07]} 42. Ka1 {[%clk 0:00:17]}  cxd5 {[%clk 0:00:06]} 43. Qd6+ {[%clk 0:00:16]}  Ke8 {[%clk 0:00:05]} 44. Rg8# {[%clk 0:00:15]} 1-0


[Site "https://www.chess.com"]

[Event "Titled Tuesday Blitz July 26 Late 2022"]
[White "Vasquez Schroeder, Rodrigo"]
[Black "Riehle, Marco"]
[WhiteFideId "3400042"]
[BlackFideId "12904392"]
[WhiteElo "2567"]
[BlackElo "2462"]
[Result "1-0"]
[Round "10"]
[TimeControl "180+1"]
[Date "2022.07.26"]
[WhiteClock "0:00:23"]
[BlackClock "0:00:09"]

1. e4 {[%clk 0:03:00]}  e5 {[%clk 0:02:59]} 2. Nf3 {[%clk 0:03:00]}  Nf6 {[%clk 0:03:00]} 3. d3 {[%clk 0:03:00]}  Nc6 {[%clk 0:02:59]} 4. c3 {[%clk 0:02:57]}  Bc5 {[%clk 0:02:59]} 5. Be2 {[%clk 0:02:57]}  d6 {[%clk 0:02:58]} 6. b4 {[%clk 0:02:54]}  Bb6 {[%clk 0:02:57]} 7. a3 {[%clk 0:02:54]}  a5 {[%clk 0:02:55]} 8. Bb2 {[%clk 0:02:53]}  axb4 {[%clk 0:02:53]} 9. axb4 {[%clk 0:02:53]}  Rxa1 {[%clk 0:02:54]} 10. Bxa1 {[%clk 0:02:54]}  O-O {[%clk 0:02:52]} 11. O-O {[%clk 0:02:54]}  Re8 {[%clk 0:02:45]} 12. Nbd2 {[%clk 0:02:53]}  d5 {[%clk 0:02:44]} 13. b5 {[%clk 0:02:48]}  Na5 {[%clk 0:02:42]} 14. Qc2 {[%clk 0:02:41]}  h6 {[%clk 0:02:29]} 15. c4 {[%clk 0:02:38]}  dxc4 {[%clk 0:02:22]} 16. dxc4 {[%clk 0:02:36]}  Bd4 {[%clk 0:02:09]} 17. Nxd4 {[%clk 0:02:29]}  exd4 {[%clk 0:02:10]} 18. c5 {[%clk 0:02:28]}  b6 {[%clk 0:02:04]} 19. c6 {[%clk 0:02:27]}  Bf5 {[%clk 0:01:50]} 20. Bd3 {[%clk 0:02:24]}  Bg6 {[%clk 0:01:48]} 21. Re1 {[%clk 0:02:20]}  Qd6 {[%clk 0:01:39]} 22. Bb2 {[%clk 0:02:11]}  Ng4 {[%clk 0:01:35]} 23. Nf3 {[%clk 0:02:08]}  f5 {[%clk 0:01:26]} 24. Bxd4 {[%clk 0:02:00]}  fxe4 {[%clk 0:01:21]} 25. Bxe4 {[%clk 0:02:00]}  Nxh2 {[%clk 0:00:54]} 26. Bc3 {[%clk 0:00:42]}  Nxf3+ {[%clk 0:00:42]} 27. gxf3 {[%clk 0:00:42]}  Bxe4 {[%clk 0:00:38]} 28. Rxe4 {[%clk 0:00:42]}  Qg6+ {[%clk 0:00:34]} 29. Kf1 {[%clk 0:00:41]}  Rxe4 {[%clk 0:00:18]} 30. fxe4 {[%clk 0:00:38]}  Nc4 {[%clk 0:00:10]} 31. Qd3 {[%clk 0:00:36]}  Nd6 {[%clk 0:00:09]} 32. f3 {[%clk 0:00:34]}  Kh7 {[%clk 0:00:09]} 33. Be5 {[%clk 0:00:32]}  Ne8 {[%clk 0:00:07]} 34. Qd7 {[%clk 0:00:23]}  Qh5 {[%clk 0:00:08]} 35. Qf5+ {[%clk 0:00:21]}  Qxf5 {[%clk 0:00:08]} 36. exf5 {[%clk 0:00:21]}  g6 {[%clk 0:00:08]} 37. fxg6+ {[%clk 0:00:20]}  Kxg6 {[%clk 0:00:09]} 38. Kf2 {[%clk 0:00:20]}  Kf5 {[%clk 0:00:10]} 39. f4 {[%clk 0:00:21]}  h5 {[%clk 0:00:09]} 40. Kg3 {[%clk 0:00:21]}  Ke6 {[%clk 0:00:10]} 41. Kh4 {[%clk 0:00:21]}  Kd5 {[%clk 0:00:07]} 42. Kxh5 {[%clk 0:00:21]}  Kc5 {[%clk 0:00:08]} 43. Kg6 {[%clk 0:00:21]}  Kxb5 {[%clk 0:00:08]} 44. Kf7 {[%clk 0:00:21]}  Kxc6 {[%clk 0:00:05]} 45. Kxe8 {[%clk 0:00:21]}  b5 {[%clk 0:00:06]} 46. f5 {[%clk 0:00:22]}  Kd5 {[%clk 0:00:06]} 47. f6 {[%clk 0:00:22]}  Kxe5 {[%clk 0:00:05]} 48. f7 {[%clk 0:00:22]}  c5 {[%clk 0:00:05]} 49. f8=Q {[%clk 0:00:23]}  Kd4 {[%clk 0:00:06]} 50. Qf2+ {[%clk 0:00:23]}  Kc4 {[%clk 0:00:06]} 51. Qc2+ {[%clk 0:00:23]}  Kb4 {[%clk 0:00:06]} 52. Kd7 {[%clk 0:00:23]}  c4 {[%clk 0:00:07]} 53. Kc6 {[%clk 0:00:24]}  c3 {[%clk 0:00:07]} 54. Qb1+ {[%clk 0:00:23]}  Kc4 {[%clk 0:00:08]} 55. Qxb5+ {[%clk 0:00:23]}  Kd4 {[%clk 0:00:09]} 56. Qb1 {[%clk 0:00:23]} 1-0


[Site "https://www.chess.com"]

[Event "Titled Tuesday Blitz July 26 Late 2022"]
[White "Wagner, Dennis"]
[Black "Medeiros Jr, Francisco De Assis"]
[WhiteFideId "24650684"]
[BlackFideId "2114267"]
[WhiteElo "2355"]
[BlackElo "2020"]
[Result "1-0"]
[Round "10"]
[TimeControl "180+1"]
[Date "2022.07.26"]
[WhiteClock "0:01:52"]
[BlackClock "0:00:59"]

1. e4 {[%clk 0:03:00]}  c6 {[%clk 0:02:59]} 2. d4 {[%clk 0:02:58]}  d5 {[%clk 0:02:59]} 3. e5 {[%clk 0:02:57]}  Bf5 {[%clk 0:02:59]} 4. Nf3 {[%clk 0:02:57]}  e6 {[%clk 0:02:59]} 5. Be2 {[%clk 0:02:57]}  Nd7 {[%clk 0:02:58]} 6. O-O {[%clk 0:02:55]}  Ne7 {[%clk 0:02:58]} 7. a4 {[%clk 0:02:52]}  Bg6 {[%clk 0:02:56]} 8. a5 {[%clk 0:02:51]}  h6 {[%clk 0:02:52]} 9. b4 {[%clk 0:02:45]}  a6 {[%clk 0:02:50]} 10. c3 {[%clk 0:02:45]}  Nf5 {[%clk 0:02:48]} 11. Nbd2 {[%clk 0:02:42]}  Be7 {[%clk 0:02:46]} 12. Nb3 {[%clk 0:02:43]}  O-O {[%clk 0:02:44]} 13. Bd3 {[%clk 0:02:36]}  Nh4 {[%clk 0:02:27]} 14. Nxh4 {[%clk 0:02:30]}  Bxh4 {[%clk 0:02:06]} 15. Bxg6 {[%clk 0:02:28]}  fxg6 {[%clk 0:02:07]} 16. Qg4 {[%clk 0:02:28]}  Kh7 {[%clk 0:01:04]} 17. g3 {[%clk 0:02:26]}  Be7 {[%clk 0:01:01]} 18. Qxe6 {[%clk 0:02:26]}  Rf5 {[%clk 0:00:58]} 19. g4 {[%clk 0:01:59]}  Nf8 {[%clk 0:00:58]} 20. gxf5 {[%clk 0:01:52]}  gxf5 {[%clk 0:00:59]} 21. Qxf5+ {[%clk 0:01:52]} 1-0


[Site "https://www.chess.com"]

[Event "Titled Tuesday Blitz July 26 Late 2022"]
[White "Averjanov, Alexey"]
[Black "Petrovic, Aleksa"]
[WhiteFideId "14109867"]
[BlackFideId "967629"]
[WhiteElo "2609"]
[BlackElo "2185"]
[Result "1-0"]
[Round "11"]
[TimeControl "180+1"]
[Date "2022.07.26"]
[WhiteClock "0:01:47"]
[BlackClock "0:00:01"]

1. d4 {[%clk 0:02:57]}  Nf6 {[%clk 0:02:59]} 2. c4 {[%clk 0:02:58]}  e6 {[%clk 0:02:59]} 3. Nf3 {[%clk 0:02:58]}  b6 {[%clk 0:02:59]} 4. g3 {[%clk 0:02:58]}  Ba6 {[%clk 0:02:59]} 5. Nbd2 {[%clk 0:02:58]}  Bb4 {[%clk 0:02:58]} 6. Qc2 {[%clk 0:02:59]}  Bb7 {[%clk 0:02:49]} 7. Bg2 {[%clk 0:02:59]}  c5 {[%clk 0:02:46]} 8. O-O {[%clk 0:02:58]}  cxd4 {[%clk 0:02:44]} 9. Nxd4 {[%clk 0:02:59]}  Bxg2 {[%clk 0:02:44]} 10. Kxg2 {[%clk 0:03:00]}  Qc8 {[%clk 0:02:44]} 11. b3 {[%clk 0:03:00]}  a6 {[%clk 0:02:38]} 12. Bb2 {[%clk 0:03:00]}  b5 {[%clk 0:02:36]} 13. Rac1 {[%clk 0:02:57]}  Qb7+ {[%clk 0:02:35]} 14. Kg1 {[%clk 0:02:57]}  O-O {[%clk 0:02:32]} 15. Rfd1 {[%clk 0:02:55]}  Rc8 {[%clk 0:02:30]} 16. Qb1 {[%clk 0:02:55]}  Nc6 {[%clk 0:02:21]} 17. Nxc6 {[%clk 0:02:53]}  Rxc6 {[%clk 0:02:11]} 18. Bxf6 {[%clk 0:02:54]}  Bxd2 {[%clk 0:02:11]} 19. Rxd2 {[%clk 0:02:53]}  gxf6 {[%clk 0:02:11]} 20. cxb5 {[%clk 0:02:50]}  Rxc1+ {[%clk 0:02:10]} 21. Qxc1 {[%clk 0:02:51]}  axb5 {[%clk 0:02:09]} 22. Qc3 {[%clk 0:02:52]}  Rc8 {[%clk 0:02:06]} 23. Qb2 {[%clk 0:02:49]}  b4 {[%clk 0:02:02]} 24. Rc2 {[%clk 0:02:49]}  Rxc2 {[%clk 0:02:01]} 25. Qxc2 {[%clk 0:02:50]}  Kg7 {[%clk 0:02:00]} 26. f3 {[%clk 0:02:48]}  Qb6+ {[%clk 0:01:59]} 27. Kg2 {[%clk 0:02:48]}  Qe3 {[%clk 0:01:58]} 28. Qb2 {[%clk 0:02:46]}  Kg6 {[%clk 0:01:56]} 29. h4 {[%clk 0:02:45]}  f5 {[%clk 0:01:55]} 30. Kf1 {[%clk 0:02:40]}  f6 {[%clk 0:01:53]} 31. a4 {[%clk 0:02:39]}  bxa3 {[%clk 0:01:51]} 32. Qxa3 {[%clk 0:02:39]}  Kf7 {[%clk 0:01:48]} 33. Qb2 {[%clk 0:02:36]}  e5 {[%clk 0:01:34]} 34. b4 {[%clk 0:02:36]}  e4 {[%clk 0:01:34]} 35. Kg2 {[%clk 0:02:27]}  d5 {[%clk 0:00:34]} 36. b5 {[%clk 0:02:19]}  Qb6 {[%clk 0:00:33]} 37. g4 {[%clk 0:02:02]}  fxg4 {[%clk 0:00:27]} 38. fxg4 {[%clk 0:02:03]}  d4 {[%clk 0:00:16]} 39. Qb3+ {[%clk 0:01:56]}  Kg7 {[%clk 0:00:16]} 40. Qc4 {[%clk 0:01:50]}  d3 {[%clk 0:00:04]} 41. exd3 {[%clk 0:01:49]}  exd3 {[%clk 0:00:03]} 42. Qxd3 {[%clk 0:01:50]}  Qb7+ {[%clk 0:00:03]} 43. Kf2 {[%clk 0:01:47]}  Qb6+ {[%clk 0:00:03]} 44. Ke2 {[%clk 0:01:48]}  Qe6+ {[%clk 0:00:03]} 45. Kd2 {[%clk 0:01:47]}  Qa2+ {[%clk 0:00:02]} 46. Kc3 {[%clk 0:01:47]}  Qa3+ {[%clk 0:00:02]} 47. Kc4 {[%clk 0:01:47]}  Qa4+ {[%clk 0:00:02]} 48. Kd5 {[%clk 0:01:48]}  Qa2+ {[%clk 0:00:01]} 49. Kc6 {[%clk 0:01:48]}  Qe6+ {[%clk 0:00:01]} 50. Qd6 {[%clk 0:01:47]}  Qe4+ {[%clk 0:00:01]} 51. Qd5 {[%clk 0:01:47]}  Qc2+ {[%clk 0:00:01]} 52. Kb7 {[%clk 0:01:47]} 1-0


[Site "https://www.chess.com"]

[Event "Titled Tuesday Blitz July 26 Late 2022"]
[White "Blanco Ronquillo, Humberto L."]
[Black "Golubev, Mikhail"]
[WhiteFideId "3504239"]
[BlackFideId "14100983"]
[WhiteElo "2423"]
[BlackElo "2374"]
[Result "1-0"]
[Round "11"]
[TimeControl "180+1"]
[Date "2022.07.26"]
[WhiteClock "0:00:22"]
[BlackClock "0:00:06"]

1. e4 {[%clk 0:03:00]}  c5 {[%clk 0:02:59]} 2. Nf3 {[%clk 0:03:00]}  d6 {[%clk 0:02:59]} 3. d4 {[%clk 0:02:58]}  Nf6 {[%clk 0:02:59]} 4. Nc3 {[%clk 0:02:57]}  cxd4 {[%clk 0:02:59]} 5. Nxd4 {[%clk 0:02:58]}  g6 {[%clk 0:02:59]} 6. g3 {[%clk 0:02:59]}  Nc6 {[%clk 0:02:57]} 7. Nde2 {[%clk 0:02:57]}  Bd7 {[%clk 0:02:56]} 8. Bg2 {[%clk 0:02:57]}  Qc8 {[%clk 0:02:56]} 9. h3 {[%clk 0:02:45]}  Bg7 {[%clk 0:02:55]} 10. Nd5 {[%clk 0:02:43]}  O-O {[%clk 0:02:50]} 11. a4 {[%clk 0:02:42]}  Re8 {[%clk 0:02:21]} 12. Be3 {[%clk 0:01:46]}  Ne5 {[%clk 0:02:20]} 13. b3 {[%clk 0:01:43]}  Nxd5 {[%clk 0:01:28]} 14. exd5 {[%clk 0:01:43]}  Bf5 {[%clk 0:01:23]} 15. Ra2 {[%clk 0:01:21]}  h5 {[%clk 0:01:20]} 16. Nd4 {[%clk 0:01:19]}  Qc3+ {[%clk 0:00:23]} 17. Qd2 {[%clk 0:01:18]}  Rac8 {[%clk 0:00:19]} 18. Qxc3 {[%clk 0:00:40]}  Rxc3 {[%clk 0:00:17]} 19. Kd2 {[%clk 0:00:40]}  Rec8 {[%clk 0:00:16]} 20. Nxf5 {[%clk 0:00:41]}  gxf5 {[%clk 0:00:15]} 21. Bxa7 {[%clk 0:00:41]}  Bh6+ {[%clk 0:00:08]} 22. Be3 {[%clk 0:00:26]}  Bxe3+ {[%clk 0:00:07]} 23. fxe3 {[%clk 0:00:27]}  Nd7 {[%clk 0:00:07]} 24. Rf1 {[%clk 0:00:25]}  e6 {[%clk 0:00:05]} 25. dxe6 {[%clk 0:00:25]}  fxe6 {[%clk 0:00:05]} 26. Bxb7 {[%clk 0:00:26]}  R8c7 {[%clk 0:00:06]} 27. Bf3 {[%clk 0:00:24]}  Nf6 {[%clk 0:00:05]} 28. a5 {[%clk 0:00:22]}  d5 {[%clk 0:00:06]} 29. a6 {[%clk 0:00:22]} 1-0


[Site "https://www.chess.com"]

[Event "Titled Tuesday Blitz July 26 Late 2022"]
[White "Bortnyk, Olexandr"]
[Black "Grigoriants, Sergey"]
[WhiteFideId "14120828"]
[BlackFideId "4130804"]
[WhiteElo "2723"]
[BlackElo "2502"]
[Result "0-1"]
[Round "11"]
[TimeControl "180+1"]
[Date "2022.07.26"]
[WhiteClock "0:00:36"]
[BlackClock "0:00:28"]

1. d4 {[%clk 0:03:00]}  Nf6 {[%clk 0:02:59]} 2. Nc3 {[%clk 0:03:01]}  d5 {[%clk 0:02:58]} 3. Bf4 {[%clk 0:03:01]}  c6 {[%clk 0:02:42]} 4. e3 {[%clk 0:03:02]}  Bf5 {[%clk 0:02:36]} 5. Nf3 {[%clk 0:03:02]}  e6 {[%clk 0:02:36]} 6. Ne5 {[%clk 0:03:03]}  h6 {[%clk 0:02:33]} 7. g4 {[%clk 0:03:03]}  Bh7 {[%clk 0:02:33]} 8. h4 {[%clk 0:03:03]}  Nfd7 {[%clk 0:02:33]} 9. Bd3 {[%clk 0:03:04]}  Nxe5 {[%clk 0:02:32]} 10. Bxe5 {[%clk 0:03:02]}  Bxd3 {[%clk 0:02:29]} 11. Qxd3 {[%clk 0:03:01]}  Nd7 {[%clk 0:02:30]} 12. O-O-O {[%clk 0:03:01]}  Nxe5 {[%clk 0:02:25]} 13. dxe5 {[%clk 0:03:02]}  Be7 {[%clk 0:02:25]} 14. h5 {[%clk 0:02:58]}  Qa5 {[%clk 0:02:23]} 15. a3 {[%clk 0:02:57]}  O-O-O {[%clk 0:02:23]} 16. f4 {[%clk 0:02:58]}  c5 {[%clk 0:02:16]} 17. f5 {[%clk 0:02:56]}  c4 {[%clk 0:02:15]} 18. Qd2 {[%clk 0:02:55]}  d4 {[%clk 0:02:11]} 19. Nb1 {[%clk 0:02:38]}  c3 {[%clk 0:02:05]} 20. Qd3 {[%clk 0:02:36]}  Qxe5 {[%clk 0:01:59]} 21. bxc3 {[%clk 0:02:16]}  dxe3 {[%clk 0:01:53]} 22. Qc4+ {[%clk 0:02:12]}  Kb8 {[%clk 0:01:54]} 23. Rxd8+ {[%clk 0:02:09]}  Rxd8 {[%clk 0:01:50]} 24. fxe6 {[%clk 0:02:10]}  fxe6 {[%clk 0:01:43]} 25. Re1 {[%clk 0:02:09]}  Bh4 {[%clk 0:01:17]} 26. Re2 {[%clk 0:02:07]}  Bg5 {[%clk 0:01:03]} 27. a4 {[%clk 0:02:05]}  Qd5 {[%clk 0:00:57]} 28. Qb5 {[%clk 0:02:00]}  Rf8 {[%clk 0:00:48]} 29. Na3 {[%clk 0:01:07]}  Qa2 {[%clk 0:00:36]} 30. Qe5+ {[%clk 0:00:40]}  Ka8 {[%clk 0:00:36]} 31. Re1 {[%clk 0:00:36]}  e2+ {[%clk 0:00:32]} 32. Qxg5 {[%clk 0:00:36]}  hxg5 {[%clk 0:00:32]} 33. Nb1 {[%clk 0:00:36]}  Rf1 {[%clk 0:00:28]} 0-1


[Site "https://www.chess.com"]